Workbook

Sheet 검교정방법
A1: 자동피펫 자체교정 관련
A2: (관련규격 : ISO 8655)
A3: Eppendorf SOP 를 참고하여 작성하였으며, 각 제조사에 따라 다를 수 있음.
A4: 1. 최소요구 전자저울 사양
B5: 시험 용량 | C5: 해독도 (mg)
B6: 1~10 uL | C6: 0.001
B7: >10~100 uL | C7: 0.01
B8: >100 uL ~ 10 mL | C8: 0.1
B9: >10 ~ 200 mL | C9: 1
A11: 2. 시험환경
A12: - 15~30℃, RH 50% 이상
A13: - Test Liquid : DI water
A15: 3. 평가항목
A16: - 시스템 에러 | B16: (정확도)
A17: - 랜덤 에러 | B17: (정밀도)
A19: 4. 에러 한계
A22: 5. 평가방법
A23: - 피펫의 10, 50, 100 % 용량(설정값)에 대하여 각각 3회 이상 테스트 한다.
A24: - 각 용량별 테스트 값에 온도 보정 실시
A25: - 평균값 및 표준편차 산출
A26: - 시스템에러(%) = (평균값- 설정값)/설정값×100
A27: - 랜덤에러(%) = (표준편차/평균값)×100
A28: - 시스템에러 와 랜덤에러 값을 위의 표와 비교하여 범위 안에 있는지 확인

Sheet 양식
B1: 사용방법 : | C1: 노란색 셀에만 데이터 입력 | K1: Factor Z for DI water | O1: Error Limits ISO 8655
C2: 나머지는 자동계산 | L2: Air Pressure(kPa) | Q2: %
K3: Temp.(℃) | L3: 101.3 | O3: Volume(uL) | P3: Sys Err | Q3: Ran Err
B4: 시험일자 | C4: 2016.2.1(월) | K4: 15 | L4: 1.0020 | O4: 1 | P4: 5 | Q4: 5
B5: 피펫번호 | C5: 일련번호 또는 자체관리번호 기입 | K5: 15.5 | L5: 1.0020 | O5: 2 | P5: 4 | Q5: 2
B6: 피펫용량 | C6: 1000 | D6: uL | K6: 16 | L6: 1.0021 | O6: 5 | P6: 2.5 | Q6: 1.5
B7: Temp | C7: 23 | D7: ℃ | E7: → | F7: Z : | G7: =VLOOKUP(C7,$K$4:$L$34,2) -> 1.0035 | K7: 16.5 | L7: 1.0022 | O7: 10 | P7: 1.2 | Q7: 0.8
K8: 17 | L8: 1.0023 | O8: 20 | P8: 1 | Q8: 0.5
K9: 17.5 | L9: 1.0024 | O9: 50 | P9: 1 | Q9: 0.4
B10: (예시) | H10: (Unit : ug) | K10: 18 | L10: 1.0025 | O10: 100 | P10: 0.8 | Q10: 0.3
C11: 10 | D11: % | E11: 50 | F11: % | G11: 100 | H11: % | K11: 18.5 | L11: 1.0026 | O11: 200 | P11: 0.8 | Q11: 0.3
C12: =C6*0.1 -> 100 | D12: uL | E12: =C6*0.5 -> 500 | F12: uL | G12: =C6 -> 1000 | H12: uL | K12: 19 | L12: 1.0027 | O12: 500 | P12: 0.8 | Q12: 0.3
C13: 측정값 | D13: 측정값*Z | E13: 측정값 | F13: 측정값*Z | G13: 측정값 | H13: 측정값*Z | K13: 19.5 | L13: 1.0028 | O13: 1000 | P13: 0.8 | Q13: 0.3
B14: Test 1 | C14: 100 | D14: =C14*$G$7 -> 100.4 | E14: 500 | F14: =E14*$G$7 -> 501.8 | G14: 1000 | H14: =G14*$G$7 -> 1003.5 | K14: 20 | L14: 1.0029 | O14: 2000 | P14: 0.8 | Q14: 0.3
B15: Test 2 | C15: 90 | D15: 90.3 | E15: 490 | F15: =E15*$G$7 -> 491.7 | G15: 1010 | H15: =G15*$G$7 -> 1013.5 | K15: 20.5 | L15: 1.0030 | O15: 5000 | P15: 0.8 | Q15: 0.3
B16: Test 3 | C16: 90 | D16: 90.3 | E16: 490 | F16: =E16*$G$7 -> 491.7 | G16: 1000 | H16: =G16*$G$7 -> 1003.5 | K16: 21 | L16: 1.0031 | O16: 10000 | P16: 0.6 | Q16: 0.3
B17: Test 4 | C17: 90 | D17: 90.3 | E17: 500 | F17: =E17*$G$7 -> 501.8 | G17: 1010 | H17: 1013.5 | K17: 21.5 | L17: 1.0032
B18: Test 5 | C18: 90 | D18: 90.3 | E18: 500 | F18: =E18*$G$7 -> 501.8 | G18: 1000 | H18: 1003.5 | K18: 22 | L18: 1.0033
B19: Test 6 | C19: 90 | D19: 90.3 | G19: 1010 | H19: 1013.5 | K19: 22.5 | L19: 1.0034
B20: Test 7 | C20: 90 | D20: 90.3 | G20: 1010 | H20: 1013.5 | K20: 23 | L20: 1.0035
B21: Test 8 | C21: 90 | D21: 90.3 | G21: 1010 | H21: 1013.5 | K21: 23.5 | L21: 1.0036
B22: Test 9 | C22: 90 | D22: 90.3 | K22: 24 | L22: 1.0038
B23: Test 10 | C23: 90 | D23: 90.3 | K23: 24.5 | L23: 1.0039
B24: Avg. | D24: =AVERAGE(D14:D23) -> 91.3 | F24: =AVERAGE(F14:F23) -> 497.7 | H24: =AVERAGE(H14:H23) -> 1009.8 | K24: 25 | L24: 1.0040
B25: S.D. | D25: =_xlfn.STDEV.S(D14:D23) -> 3.2 | F25: =_xlfn.STDEV.S(F14:F23) -> 5.5 | H25: =_xlfn.STDEV.S(H14:H23) -> 5.2 | K25: 25.5 | L25: 1.0041
K26: 26 | L26: 1.0043
B27: 정확도 | K27: 26.5 | L27: 1.0044
B28: System Error(%) | D28: =(D24-C12)/C12*100 -> -8.68 | F28: =(F24-E12)/E12*100 -> -0.45 | H28: =(H24-G12)/G12*100 -> 0.98 | K28: 27 | L28: 1.0045
B29: S.E. 적합범위 | D29: =VLOOKUP(C12,$O$4:$Q$16,2) -> 0.8 | F29: =VLOOKUP(E12,$O$4:$Q$16,2) -> 0.8 | H29: =VLOOKUP(G12,$O$4:$Q$16,2) -> 0.8 | K29: 27.5 | L29: 1.0047
B30: 적합여부 | D30: =IF(D29>=ABS(D28),"적합", "부적합") -> 부적합 | F30: =IF(F29>=ABS(F28),"적합", "부적합") -> 적합 | H30: =IF(H29>=ABS(H28),"적합", "부적합") -> 부적합 | K30: 28 | L30: 1.0048
K31: 28.5 | L31: 1.0050
B32: 정밀도 | K32: 29 | L32: 1.0051
B33: Random Error(%) | D33: =(D25/D24)*100 -> 3.48 | F33: =(F25/F24)*100 -> 1.10 | H33: =(H25/H24)*100 -> 0.51 | K33: 29.5 | L33: 1.0052
B34: R.E. 적합범위 | D34: =VLOOKUP(C12,$O$4:$Q$16,3) -> 0.3 | F34: =VLOOKUP(E12,$O$4:$Q$16,3) -> 0.3 | H34: =VLOOKUP(G12,$O$4:$Q$16,3) -> 0.3 | K34: 30 | L34: 1.0054
B35: 적합여부 | D35: =IF(D34>=ABS(D33),"적합", "부적합") -> 부적합 | F35: =IF(F34>=ABS(F33),"적합", "부적합") -> 부적합 | H35: =IF(H34>=ABS(H33),"적합", "부적합") -> 부적합

Sheet 양식 (2)
B1: 사용방법 : | C1: 노란색 셀에만 데이터 입력 | K1: Factor Z for DI water | O1: Error Limits ISO 8655
C2: 나머지는 자동계산 | L2: Air Pressure(kPa) | Q2: %
K3: Temp.(℃) | L3: 101.3 | O3: Volume(uL) | P3: Sys Err | Q3: Ran Err
B4: 시험일자 | C4: 2016.2.1(월) | K4: 15 | L4: 1.0020 | O4: 1 | P4: 5 | Q4: 5
B5: 피펫번호 | C5: 일련번호 또는 자체관리번호 기입 | K5: 15.5 | L5: 1.0020 | O5: 2 | P5: 4 | Q5: 2
B6: 피펫용량 | C6: 1000 | D6: uL | K6: 16 | L6: 1.0021 | O6: 5 | P6: 2.5 | Q6: 1.5
B7: Temp | C7: 23 | D7: ℃ | E7: → | F7: Z : | G7: =VLOOKUP(C7,$K$4:$L$34,2) -> 1.0035 | K7: 16.5 | L7: 1.0022 | O7: 10 | P7: 1.2 | Q7: 0.8
K8: 17 | L8: 1.0023 | O8: 20 | P8: 1 | Q8: 0.5
K9: 17.5 | L9: 1.0024 | O9: 50 | P9: 1 | Q9: 0.4
B10: (예시) | H10: (Unit : ug) | K10: 18 | L10: 1.0025 | O10: 100 | P10: 0.8 | Q10: 0.3
C11: 10 | D11: % | E11: 50 | F11: % | G11: 100 | H11: % | K11: 18.5 | L11: 1.0026 | O11: 200 | P11: 0.8 | Q11: 0.3
C12: =C6*0.1 -> 100 | D12: uL | E12: =C6*0.5 -> 500 | F12: uL | G12: =C6 -> 1000 | H12: uL | K12: 19 | L12: 1.0027 | O12: 500 | P12: 0.8 | Q12: 0.3
C13: 측정값 | D13: 측정값*Z | E13: 측정값 | F13: 측정값*Z | G13: 측정값 | H13: 측정값*Z | K13: 19.5 | L13: 1.0028 | O13: 1000 | P13: 0.8 | Q13: 0.3
B14: Test 1 | C14: 100 | D14: =C14*$G$7 -> 100.4 | E14: 501 | F14: =E14*$G$7 -> 502.8 | G14: 1000 | H14: =G14*$G$7 -> 1003.5 | K14: 20 | L14: 1.0029 | O14: 2000 | P14: 0.8 | Q14: 0.3
B15: Test 2 | C15: 101 | D15: =C15*$G$7 -> 101.4 | E15: 498 | F15: 499.7 | G15: 1010 | H15: =G15*$G$7 -> 1013.5 | K15: 20.5 | L15: 1.0030 | O15: 5000 | P15: 0.8 | Q15: 0.3
B16: Test 3 | C16: 100 | D16: =C16*$G$7 -> 100.4 | E16: 499 | F16: 500.7 | G16: 1000 | H16: 1003.5 | K16: 21 | L16: 1.0031 | O16: 10000 | P16: 0.6 | Q16: 0.3
B17: Test 4 | E17: 500 | F17: 501.8 | G17: 1010 | H17: 1013.5 | K17: 21.5 | L17: 1.0032
B18: Test 5 | E18: 499 | F18: 500.7 | G18: 1000 | H18: 1003.5 | K18: 22 | L18: 1.0033
B19: Test 6 | E19: 500 | F19: 501.8 | G19: 1010 | H19: 1013.5 | K19: 22.5 | L19: 1.0034
B20: Test 7 | G20: 1010 | H20: 1013.5 | K20: 23 | L20: 1.0035
B21: Test 8 | G21: 1010 | H21: 1013.5 | K21: 23.5 | L21: 1.0036
B22: Test 9 | K22: 24 | L22: 1.0038
B23: Test 10 | K23: 24.5 | L23: 1.0039
B24: Avg. | D24: =AVERAGE(D14:D23) -> 100.7 | F24: =AVERAGE(F14:F23) -> 501.2 | H24: =AVERAGE(H14:H23) -> 1009.8 | K24: 25 | L24: 1.0040
B25: S.D. | D25: =_xlfn.STDEV.S(D14:D23) -> 0.6 | F25: =_xlfn.STDEV.S(F14:F23) -> 1.1 | H25: =_xlfn.STDEV.S(H14:H23) -> 5.2 | K25: 25.5 | L25: 1.0041
K26: 26 | L26: 1.0043
B27: 정확도 | K27: 26.5 | L27: 1.0044
B28: System Error(%) | D28: =(D24-C12)/C12*100 -> 0.68 | F28: =(F24-E12)/E12*100 -> 0.25 | H28: =(H24-G12)/G12*100 -> 0.98 | K28: 27 | L28: 1.0045
B29: S.E. 적합범위 | D29: =VLOOKUP(C12,$O$4:$Q$16,2) -> 0.8 | F29: =VLOOKUP(E12,$O$4:$Q$16,2) -> 0.8 | H29: =VLOOKUP(G12,$O$4:$Q$16,2) -> 0.8 | K29: 27.5 | L29: 1.0047
B30: 적합여부 | D30: =IF(D29>=ABS(D28),"적합", "부적합") -> 적합 | F30: =IF(F29>=ABS(F28),"적합", "부적합") -> 적합 | H30: =IF(H29>=ABS(H28),"적합", "부적합") -> 부적합 | K30: 28 | L30: 1.0048
K31: 28.5 | L31: 1.0050
B32: 정밀도 | K32: 29 | L32: 1.0051
B33: Random Error(%) | D33: =(D25/D24)*100 -> 0.58 | F33: =(F25/F24)*100 -> 0.21 | H33: =(H25/H24)*100 -> 0.51 | K33: 29.5 | L33: 1.0052
B34: R.E. 적합범위 | D34: =VLOOKUP(C12,$O$4:$Q$16,3) -> 0.3 | F34: =VLOOKUP(E12,$O$4:$Q$16,3) -> 0.3 | H34: =VLOOKUP(G12,$O$4:$Q$16,3) -> 0.3 | K34: 30 | L34: 1.0054
B35: 적합여부 | D35: =IF(D34>=ABS(D33),"적합", "부적합") -> 부적합 | F35: =IF(F34>=ABS(F33),"적합", "부적합") -> 적합 | H35: =IF(H34>=ABS(H33),"적합", "부적합") -> 부적합

Sheet 양식 (3)
B1: 사용방법 : | C1: 노란색 셀에만 데이터 입력 | K1: Factor Z for DI water | O1: Error Limits ISO 8655
C2: 나머지는 자동계산 | L2: Air Pressure(kPa) | Q2: %
K3: Temp.(℃) | L3: 101.3 | O3: Volume(uL) | P3: Sys Err | Q3: Ran Err
B4: 시험일자 | C4: 2016.2.1(월) | K4: 15 | L4: 1.0020 | O4: 1 | P4: 5 | Q4: 5
B5: 피펫번호 | C5: 일련번호 또는 자체관리번호 기입 | K5: 15.5 | L5: 1.0020 | O5: 2 | P5: 4 | Q5: 2
B6: 피펫용량 | C6: 1000 | D6: uL | K6: 16 | L6: 1.0021 | O6: 5 | P6: 2.5 | Q6: 1.5
B7: Temp | C7: 23 | D7: ℃ | E7: → | F7: Z : | G7: =VLOOKUP(C7,$K$4:$L$34,2) -> 1.0035 | K7: 16.5 | L7: 1.0022 | O7: 10 | P7: 1.2 | Q7: 0.8
K8: 17 | L8: 1.0023 | O8: 20 | P8: 1 | Q8: 0.5
K9: 17.5 | L9: 1.0024 | O9: 50 | P9: 1 | Q9: 0.4
B10: (예시) | H10: (Unit : ug) | K10: 18 | L10: 1.0025 | O10: 100 | P10: 0.8 | Q10: 0.3
C11: 10 | D11: % | E11: 50 | F11: % | G11: 100 | H11: % | K11: 18.5 | L11: 1.0026 | O11: 200 | P11: 0.8 | Q11: 0.3
C12: =C6*0.1 -> 100 | D12: uL | E12: =C6*0.5 -> 500 | F12: uL | G12: =C6 -> 1000 | H12: uL | K12: 19 | L12: 1.0027 | O12: 500 | P12: 0.8 | Q12: 0.3
C13: 측정값 | D13: 측정값*Z | E13: 측정값 | F13: 측정값*Z | G13: 측정값 | H13: 측정값*Z | K13: 19.5 | L13: 1.0028 | O13: 1000 | P13: 0.8 | Q13: 0.3
B14: Test 1 | C14: 0 | D14: =C14*$G$7 -> 0.1 | E14: 0.5010 | F14: =E14*$G$7 -> 0.5028 | G14: 1000 | H14: =G14*$G$7 -> 1003.5 | I14: 1000 | K14: 20 | L14: 1.0029 | O14: 2000 | P14: 0.8 | Q14: 0.3
B15: Test 2 | C15: 0 | D15: =C15*$G$7 -> 0.1 | E15: 0.4980 | F15: 0.4997 | G15: 1010 | H15: =G15*$G$7 -> 1013.5 | K15: 20.5 | L15: 1.0030 | O15: 5000 | P15: 0.8 | Q15: 0.3
B16: Test 3 | C16: 0 | D16: =C16*$G$7 -> 0.1 | E16: 0.4990 | F16: 0.5007 | G16: 1000 | H16: 1003.5 | K16: 21 | L16: 1.0031 | O16: 10000 | P16: 0.6 | Q16: 0.3
B17: Test 4 | E17: 0.5000 | F17: 0.5018 | G17: 1010 | H17: 1013.5 | K17: 21.5 | L17: 1.0032
B18: Test 5 | E18: 0.4990 | F18: 0.5007 | G18: 1000 | H18: 1003.5 | K18: 22 | L18: 1.0033
B19: Test 6 | E19: 0.5000 | F19: 0.5018 | G19: 1010 | H19: 1013.5 | K19: 22.5 | L19: 1.0034
B20: Test 7 | G20: 1010 | H20: 1013.5 | K20: 23 | L20: 1.0035
B21: Test 8 | G21: 1010 | H21: 1013.5 | K21: 23.5 | L21: 1.0036
B22: Test 9 | K22: 24 | L22: 1.0038
B23: Test 10 | K23: 24.5 | L23: 1.0039
B24: Avg. | D24: =AVERAGE(D14:D23) -> 0.1 | F24: =AVERAGE(F14:F23) -> 0.5012 | H24: =AVERAGE(H14:H23) -> 1009.8 | K24: 25 | L24: 1.0040
B25: S.D. | D25: =_xlfn.STDEV.S(D14:D23) -> 0.0 | F25: =_xlfn.STDEV.S(F14:F23) -> 0.0011 | H25: =_xlfn.STDEV.S(H14:H23) -> 5.2 | K25: 25.5 | L25: 1.0041
K26: 26 | L26: 1.0043
B27: 정확도 | K27: 26.5 | L27: 1.0044
B28: System Error(%) | D28: =(D24-C12)/C12*100 -> -99.90 | F28: =(F24-E12/1000)/(E12/1000)*100 -> 0.25 | H28: =(H24-G12)/G12*100 -> 0.98 | K28: 27 | L28: 1.0045
B29: S.E. 적합범위 | D29: =VLOOKUP(C12,$O$4:$Q$16,2) -> 0.8 | F29: =VLOOKUP(E12,$O$4:$Q$16,2) -> 0.8 | H29: =VLOOKUP(G12,$O$4:$Q$16,2) -> 0.8 | K29: 27.5 | L29: 1.0047
B30: 적합여부 | D30: =IF(D29>=ABS(D28),"적합", "부적합") -> 부적합 | F30: =IF(F29>=ABS(F28),"적합", "부적합") -> 적합 | H30: =IF(H29>=ABS(H28),"적합", "부적합") -> 부적합 | K30: 28 | L30: 1.0048
K31: 28.5 | L31: 1.0050
B32: 정밀도 | K32: 29 | L32: 1.0051
B33: Random Error(%) | D33: =(D25/D24)*100 -> 0.58 | F33: =(F25/F24)*100 -> 0.21 | H33: =(H25/H24)*100 -> 0.51 | K33: 29.5 | L33: 1.0052
B34: R.E. 적합범위 | D34: =VLOOKUP(C12,$O$4:$Q$16,3) -> 0.3 | F34: =VLOOKUP(E12,$O$4:$Q$16,3) -> 0.3 | H34: =VLOOKUP(G12,$O$4:$Q$16,3) -> 0.3 | K34: 30 | L34: 1.0054
B35: 적합여부 | D35: =IF(D34>=ABS(D33),"적합", "부적합") -> 부적합 | F35: =IF(F34>=ABS(F33),"적합", "부적합") -> 적합 | H35: =IF(H34>=ABS(H33),"적합", "부적합") -> 부적합
